fUSD/lending_fUSD_20250325
["ID","MTS","AMOUNT","RATE_DAILY","PERIOD"]
[356636966,1742872240992,-168.08,0.00016316,2]
[356636967,1742872241002,-2447.26,0.00016338,2]
[356636968,1742872241012,-1000.0,0.00016566,2]
[356636969,1742872241021,-200.0,0.00016861,2]
[356636970,1742872241031,-4271.41,0.00016978,2]
[356636971,1742872241040,-4662.3,0.00016978,2]
[356636972,1742872241049,-953.34,0.00017009,2]
[356636973,1742872241059,-1289.14,0.00017039,2]
[356636974,1742872241068,-953.34,0.00017045,2]
[356636975,1742872241079,-953.34,0.00017081,2]
[356636976,1742872241088,-953.34,0.00017117,2]
[356636977,1742872241098,-384.41,0.00017137,2]
[356636978,1742872241107,-953.34,0.00017152,2]
[356636979,1742872241116,-158.81,0.00017154,2]
[356636980,1742872241125,-953.34,0.00017188,2]
[356636981,1742872241135,-953.34,0.00017224,2]
[356636982,1742872241145,-953.34,0.0001726,2]
[356636983,1742872241155,-164.36,0.00017265,2]
[356636984,1742872241164,-953.34,0.00017296,2]
[356636985,1742872241175,-164.36,0.00017302,2]
[356636986,1742872241184,-953.34,0.00017331,2]
[356636987,1742872241193,-164.36,0.00017338,2]
[356636988,1742872241202,-1447.72,0.00017354,2]
[356636989,1742872241212,-200.0,0.00017355,2]
[356636990,1742872241222,-953.34,0.00017367,2]
[356636991,1742872241232,-164.36,0.00017374,2]
[356636992,1742872241241,-953.34,0.00017403,2]
[356636993,1742872241250,-164.36,0.00017411,2]
[356636994,1742872241260,-953.34,0.00017439,2]
[356636995,1742872241269,-164.36,0.00017447,2]
[356636996,1742872241278,-250.0,0.00017451,2]
[356636997,1742872241287,-953.34,0.00017475,2]
[356636998,1742872241296,-184.13,0.00017476,2]
[356636999,1742872241306,-164.36,0.00017484,2]
[356637000,1742872241315,-2228.88,0.00017494,2]
[356637001,1742872241325,-296.95,0.00017505,2]
[356637002,1742872241334,-5859.21,0.00017506,2]
[356637003,1742872241344,-300.0,0.00017506,2]
[356637004,1742872241353,-3689.21,0.00017506,2]
[356637005,1742872241362,-953.34,0.0001751,2]
[356637006,1742872241371,-164.36,0.0001752,2]
[356637007,1742872241381,-953.34,0.00017546,2]
[356637008,1742872241390,-164.36,0.00017556,2]
[356637009,1742872241400,-953.34,0.00017582,2]
[356637010,1742872241409,-164.36,0.00017593,2]
[356637011,1742872241418,-953.34,0.00017618,2]
[356637012,1742872241427,-164.36,0.00017629,2]
[356637013,1742872241437,-953.34,0.00017654,2]
[356637014,1742872241446,-751.21,0.00017655,2]
[356637015,1742872241455,-164.36,0.00017665,2]
[356637016,1742872241464,-953.34,0.0001769,2]
[356637017,1742872241473,-1852.42,0.00017699,2]
[356637018,1742872241482,-164.36,0.00017702,2]
[356637019,1742872241492,-23900.0,0.00017735,2]
[356637020,1742872241501,-164.36,0.00017738,2]
[356637021,1742872241510,-164.36,0.00017774,2]
[356637022,1742872241519,-200.0,0.00017796,2]
[356637023,1742872241529,-164.36,0.00017811,2]
[356637024,1742872241538,-164.36,0.00017847,2]
[356637025,1742872241546,-185.45,0.00017875,2]
[356637026,1742872241555,-164.36,0.00017883,2]
[356637027,1742872241565,-164.36,0.0001792,2]
[356637028,1742872241574,-164.36,0.00017956,2]
[356637029,1742872241584,-258.17,0.00018097,2]
[356637030,1742872241593,-1000.0,0.00018636,2]
[356637031,1742872241606,-173.85,0.00018725,2]
[356637032,1742872241615,-1168.81,0.00018816,2]
[356637033,1742872241625,-185.45,0.00018859,2]
[356637034,1742872241634,-14117.97030116,0.00019,2]
[356637035,1742872241643,-168.08,0.00019036,2]
[356637036,1742872241653,-384.41,0.00019279,2]
[356637037,1742872241662,-150.99,0.00019339,2]
[356637038,1742872241671,-1116.78,0.00019339,5]
[356637039,1742872241680,-186.9169126,0.00019347,2]
[356637040,1742872241691,-185.45,0.00019842,2]
[356637041,1742872241700,-1000.0,0.00019862,2]
[356637042,1742872241709,-237.81339502,0.00019862,2]
[356637043,1742872241718,-303.21656026,0.00019914,2]
[356637044,1742872241727,-751.21,0.00019919,2]
[356637045,1742872241736,-200.0,0.0002,2]
[356637046,1742872241746,-2000.0,0.0002,4]
[356637047,1742872241755,-151.76,0.0002,2]
[356637048,1742872241764,-151.76,0.0002,2]
[356637049,1742872241774,-151.76,0.0002,2]
[356637050,1742872241784,-173.85,0.00020094,2]
[356637051,1742872241793,-4385.24289731,0.00020136,2]
[356637052,1742872241803,-8324.76451394,0.00020136,2]
[356637053,1742872241812,-500.92971455,0.00020363,2]
[356637054,1742872241821,-1000.0,0.00020707,2]
[356637055,1742872241830,-185.45,0.00020826,2]
[356637056,1742872241840,-384.41,0.00021421,2]
[356637057,1742872241849,-168.08,0.00021755,2]
[356637058,1742872241858,-751.21,0.00022183,2]
[356637059,1742872241868,-219.64219389,0.00022275,3]
[356637060,1742872241877,-1000.0,0.00022778,2]
[356637061,1742872241886,-2000.0,0.00023333,4]
[356637062,1742872241895,-384.41,0.00023563,2]
[356637063,1742872241904,-169.19,0.00023836,2]
[356637064,1742872241913,-1068.0,0.00023897,2]
[356637065,1742872241923,-4385.24289731,0.00024245,2]
[356637066,1742872241932,-8324.76451394,0.00024245,2]
[356637067,1742872241942,-1447.72,0.00024296,2]
[356637068,1742872241951,-1408.0,0.00024356,2]
[356637069,1742872241961,-751.21,0.00024446,2]
[356637070,1742872241971,-168.08,0.00024475,2]
[356637071,1742872241980,-288.38,0.00024658,2]
[356637072,1742872241989,-223.63,0.00024712,30]
[356637073,1742872241998,-151.76,0.0002479,2]
[356637074,1742872242008,-151.76,0.0002479,2]
[356637075,1742872242017,-535398.239894,0.000248,2]
[356637076,1742872242026,-1000.0,0.00024848,2]
[356637077,1742872242036,-381356.189704,0.000249,2]
[356637078,1742872242045,-384.41,0.00025705,120]
[356637079,1742872242054,-186.9169126,0.00025857,2]
[356637080,1742872242063,-2000.0,0.00026667,4]
[356637081,1742872242073,-751.21,0.0002671,2]
[356637082,1742872242083,-299.0,0.00026849,2]
[356637083,1742872242093,-163.17,0.00026849,2]
[356637084,1742872242102,-151.24,0.00026849,2]
[356637085,1742872242111,-151.76,0.00027387,2]
[356637086,1742872242121,-9581.3,0.00027397,2]
[356637087,1742872242131,-20374.28,0.00027397,2]
[356637088,1742872242140,-303.21656026,0.00027911,2]
[356637089,1742872242150,-4385.24289731,0.00028354,2]
[356637090,1742872242159,-8324.76451394,0.00028354,2]
[356637091,1742872242168,-151.2543746,0.00028536,4]
[356637092,1742872242178,-751.21,0.00028974,2]
[356637093,1742872242187,-1268.55874773,0.00029881,5]
[356637094,1742872242196,-415.99122694,0.00029967,5]
[356637095,1742872242206,-1389.20008454,0.00030629,3]
[356637096,1742872242215,-3741.83207303,0.00031,120]
[356637097,1742872242227,-751.21,0.00031238,2]
[356637098,1742872242236,-159.26864808,0.00031409,2]
[356637099,1742872242246,-219.64219389,0.0003165,6]
[356637100,1742872242255,-277.308,0.00031755,2]
[356637101,1742872242265,-234.0,0.00031755,2]
[356637102,1742872242274,-165.778,0.00031755,2]
[356637103,1742872242283,-292.079,0.00031755,2]
[356637104,1742872242292,-173.824,0.00031755,2]
[356637105,1742872242302,-250.0,0.00031755,2]
[356637106,1742872242311,-298.424,0.00031755,2]
[356637107,1742872242320,-229.723,0.00031755,2]
[356637108,1742872242330,-152.799,0.00031755,2]
[356637109,1742872242339,-648.177,0.00031755,2]
[356637110,1742872242348,-2055.898,0.00031755,2]
[356637111,1742872242357,-1293.67,0.00031755,2]
[356637112,1742872242367,-1426.536,0.00031755,2]
[356637113,1742872242377,-688.33,0.00031755,2]
[356637114,1742872242386,-1284.501,0.00031755,2]
[356637115,1742872242395,-794.0,0.00031755,2]
[356637116,1742872242405,-942.7,0.00031755,2]
[356637117,1742872242413,-547.801,0.00031755,2]
[356637118,1742872242422,-4124.929,0.00031755,2]
[356637119,1742872242432,-1459.355,0.00031755,2]
[356637120,1742872242442,-154.958,0.00031755,2]
[356637121,1742872242452,-3943.0,0.00031755,2]
[356637122,1742872242462,-1159.159,0.00031755,2]
[356637123,1742872242471,-186.9169126,0.00032368,2]
[356637124,1742872242480,-4385.24289731,0.00032464,2]
[356637125,1742872242490,-8324.76451394,0.00032464,2]
[356637126,1742872242499,-299.0,0.00032646,2]
[356637127,1742872242509,-751.21,0.00033502,2]
[356637128,1742872242519,-497.0,0.00034629,30]
[356637129,1742872242527,-642.0,0.00034755,2]
[356637130,1742872242536,-2037.0,0.00034755,2]
[356637131,1742872242546,-1281.0,0.00034755,2]
[356637132,1742872242555,-1421.0,0.00034755,2]
[356637133,1742872242564,-572.0,0.00034755,2]
[356637134,1742872242574,-1273.0,0.00034755,2]
[356637135,1742872242583,-788.0,0.00034755,2]
[356637136,1742872242593,-907.0,0.00034755,2]
[356637137,1742872242606,-542.0,0.00034755,2]
[356637138,1742872242616,-4086.0,0.00034755,2]
[356637140,1742872242625,-1431.0,0.00034755,2]
[356637141,1742872242634,-151.0,0.00034755,2]
[356637142,1742872242643,-3943.0,0.00034755,2]
[356637143,1742872242653,-1015.0,0.00034755,2]
[356637144,1742872242663,-152.89,0.00035616,2]
[356637146,1742872242673,-751.21,0.00035766,2]
[356637147,1742872242682,-303.21656026,0.00035907,2]
[356637148,1742872242692,-2196.475,0.0003632,44]
[356637149,1742872242701,-2233.25616237,0.0003633,3]
[356637150,1742872242710,-4385.24289731,0.00036573,2]
[356637151,1742872242719,-8324.76451394,0.00036573,2]
[356637152,1742872242728,-152.89,0.00036664,2]
[356637153,1742872242737,-284.58472506,0.000372,103]
[356637154,1742872242746,-152.89,0.00037712,2]
[356637155,1742872242755,-1273.0,0.00037755,2]
[356637156,1742872242764,-788.0,0.00037755,2]
[356637157,1742872242773,-907.0,0.00037755,2]
[356637158,1742872242783,-542.0,0.00037755,2]
[356637159,1742872242792,-4086.0,0.00037755,2]
[356637160,1742872242801,-1431.0,0.00037755,2]
[356637161,1742872242810,-894.282,0.00037755,2]
[356637162,1742872242819,-151.24,0.00037863,2]
[356637163,1742872242829,-751.21,0.0003803,2]
[356637164,1742872242838,-299.0,0.00038443,2]
[356637165,1742872242848,-152.89,0.00038759,2]
[356637166,1742872242857,-186.9169126,0.00038879,2]
[356637167,1742872242866,-152.89,0.00039807,2]
[356637169,1742872242875,-152.5209658,0.0004,14]
[356637171,1742872242885,-751.21,0.00040294,2]
[356637173,1742872242894,-4385.24289731,0.00040682,15]
[356637175,1742872242903,-8324.76451394,0.00040682,15]
[356637177,1742872242912,-152.89,0.00040854,2]
[356637179,1742872242922,-207.0392805,0.00041,30]
[356637180,1742872242931,-261.66535148,0.00041,120]
[356637183,1742872242941,-153.0,0.00041,14]
[356637184,1742872242950,-219.64219389,0.00041025,9]
[356637186,1742872242960,-156.0,0.00041096,30]
[356637188,1742872242969,-152.89,0.00041902,2]
[356637190,1742872242979,-15079.99595023,0.00041951,120]
[356637192,1742872242988,-22863.0,0.00041974,2]
[356637193,1742872242997,-558.45506909,0.00041999,120]
[356637194,1742872243007,-290.25378541,0.00042,120]
[356637195,1742872243016,-264.48,0.00042,120]
[356637196,1742872243026,-235.33,0.00042,120]
[356637197,1742872243035,-689.53,0.00042,120]
[356637198,1742872243045,-152.01,0.00042236,2]
[356637199,1742872243054,-152.01,0.00042341,2]
[356637200,1742872243063,-152.01,0.00042447,2]
[356637201,1742872243073,-152.01,0.00042553,2]
[356637202,1742872243083,-751.21,0.00042558,2]
[356637203,1742872243092,-152.01,0.00042658,2]
[356637204,1742872243102,-152.01,0.00042764,2]
[356637205,1742872243111,-152.01,0.00042869,2]
[356637206,1742872243120,-152.89,0.00042949,2]
[356637207,1742872243129,-152.01,0.00042975,2]
[356637208,1742872243142,-152.01,0.00043081,2]
[356637209,1742872243152,-153.0,0.00043151,90]
[356637210,1742872243162,-152.01,0.00043186,2]
[356637211,1742872243171,-152.01,0.00043292,2]
[356637212,1742872243180,-152.01,0.00043397,2]
[356637213,1742872243189,-152.01,0.00043503,2]
[356637214,1742872243199,-152.01,0.00043609,2]
[356637215,1742872243208,-152.01,0.00043714,2]
[356637216,1742872243217,-152.01,0.0004382,2]
[356637217,1742872243227,-303.21656026,0.00043904,2]
[356637218,1742872243236,-152.01,0.00043925,2]
[356637219,1742872243245,-152.89,0.00043997,2]
[356637220,1742872243255,-578.7454471,0.00044,30]
[356637221,1742872243264,-299.0,0.00044239,2]
[356637222,1742872243274,-359.95459823,0.0004462,2]
[356637223,1742872243283,-4385.24289731,0.00044791,15]
[356637224,1742872243293,-8324.76451394,0.00044791,15]
[356637225,1742872243303,-751.21,0.00044821,2]
[356637226,1742872243313,-6243.0,0.000449,120]
[356637227,1742872243322,-151.5691759,0.00045,120]
[356637228,1742872243331,-189.50440244,0.00045,120]
[356637229,1742872243341,-480.1020986,0.00045,120]
[356637230,1742872243350,-897.02290039,0.00045,120]
[356637231,1742872243360,-167.17777778,0.00045,120]
[356637232,1742872243370,-152.89,0.00045044,2]
[356637233,1742872243379,-646.0,0.000452,7]
[356637234,1742872243389,-1000.0,0.00045205,120]
[356637235,1742872243398,-1000.0,0.00045205,120]
[356637236,1742872243409,-1000.0,0.00045205,120]
[356637237,1742872243418,-1000.0,0.00045205,120]
[356637238,1742872243427,-1000.0,0.00045205,120]
[356637239,1742872243437,-152.0,0.00045247,3]
[356637240,1742872243447,-186.9169126,0.00045389,19]
[356637241,1742872243457,-177.58373874,0.000456,120]
[356637242,1742872243467,-267.7,0.00045888,120]
[356637243,1742872243477,-853.0,0.00045987,30]
[356637244,1742872243487,-152.89,0.00046092,2]
[356637245,1742872243496,-853.0,0.00046462,30]
[356637246,1742872243505,-205.40286,0.000465,120]
[356637247,1742872243515,-150.0,0.000465,120]
[356637248,1742872243524,-967.7953474,0.0004655,4]
[356637249,1742872243533,-582.72260753,0.00046575,120]
[356637250,1742872243543,-470.91355905,0.00046575,120]
[356637251,1742872243552,-155.50550797,0.00046575,120]
[356637252,1742872243562,-506.39,0.00046575,120]
[356637253,1742872243572,-500.0,0.00046575,120]
[356637254,1742872243582,-500.0,0.00046575,120]
[356637255,1742872243590,-947.8,0.00046575,120]
[356637256,1742872243602,-500.0,0.00046575,120]
[356637257,1742872243611,-500.0,0.00046575,120]
[356637258,1742872243621,-228.26685656,0.00046575,120]
[356637259,1742872243630,-2124.7,0.00046575,120]
[356637260,1742872243639,-500.0,0.00046575,120]
[356637261,1742872243649,-179.66945346,0.00046575,12]
[356637262,1742872243658,-500.0,0.00046575,120]
[356637263,1742872243667,-500.0,0.00046575,2]
[356637264,1742872243676,-328.41154824,0.00046575,120]
[356637265,1742872243686,-254.69826087,0.00046575,100]
[356637266,1742872243695,-367.72520924,0.00046575,120]
[356637267,1742872243704,-436.32457842,0.00046575,120]
[356637268,1742872243714,-500.0,0.00046575,120]
[356637269,1742872243724,-500.0,0.00046575,120]
[356637270,1742872243733,-304.95849646,0.00046575,120]
[356637271,1742872243743,-182.78605406,0.00046575,120]
[356637272,1742872243752,-500.0,0.00046575,120]
[356637273,1742872243762,-500.0,0.00046575,120]
[356637274,1742872243771,-500.0,0.00046575,120]
[356637275,1742872243780,-176.0412398,0.00046575,120]
[356637276,1742872243790,-155.67246063,0.00046575,120]
[356637277,1742872243906,-500.0,0.00046575,120]
[356637278,1742872243918,-500.0,0.00046575,120]
[356637279,1742872243928,-183.15006163,0.00046575,120]
[356637280,1742872243937,-216.68033218,0.00046575,120]
[356637281,1742872243946,-2792.72,0.00046575,120]
[356637282,1742872243956,-289.84169646,0.00046575,120]
[356637283,1742872243966,-186.99867339,0.00046575,120]
[356637284,1742872243975,-157.85094912,0.00046575,120]
[356637285,1742872243985,-191.31860948,0.00046575,120]
[356637286,1742872243995,-162.77817605,0.00046575,120]
[356637287,1742872244004,-500.0,0.00046575,120]
[356637288,1742872244014,-379.66372397,0.00046575,120]
[356637289,1742872244023,-500.0,0.00046575,120]
[356637290,1742872244033,-500.0,0.00046575,120]
[356637291,1742872244043,-500.0,0.00046575,120]
[356637292,1742872244052,-516.36,0.00046575,120]
[356637293,1742872244061,-350.0,0.00046575,120]
[356637294,1742872244070,-174.80354403,0.00046575,120]
[356637295,1742872244080,-500.0,0.00046575,120]
[356637296,1742872244089,-267.14951983,0.00046575,120]
[356637297,1742872244098,-1597.14,0.00046575,120]
[356637298,1742872244107,-1619.85,0.00046575,2]
[356637299,1742872244117,-570.50642153,0.00046575,120]
[356637300,1742872244127,-441.77,0.00046575,30]
[356637301,1742872244137,-1000.0,0.00046575,120]
[356637302,1742872244146,-1000.0,0.00046575,120]
[356637303,1742872244155,-1000.0,0.00046575,120]
[356637304,1742872244165,-1000.0,0.00046575,120]
[356637305,1742872244175,-1057.535,0.00046575,120]
[356637306,1742872244184,-150.0,0.0004659,120]
[356637307,1742872244193,-506.39,0.00046849,120]
[356637308,1742872244202,-500.0,0.00046849,120]
[356637309,1742872244214,-500.0,0.00046849,120]
[356637310,1742872244223,-947.8,0.00046849,120]
[356637311,1742872244232,-500.0,0.00046849,120]
[356637312,1742872244241,-500.0,0.00046849,120]
[356637313,1742872244250,-2124.7,0.00046849,120]
[356637314,1742872244260,-500.0,0.00046849,120]
[356637315,1742872244269,-427.23476018,0.00046849,120]
[356637316,1742872244278,-500.0,0.00046849,2]
[356637317,1742872244288,-500.0,0.00046849,120]
[356637318,1742872244298,-500.0,0.00046849,120]
[356637319,1742872244307,-500.0,0.00046849,120]
[356637320,1742872244316,-500.0,0.00046849,120]
[356637321,1742872244326,-500.0,0.00046849,120]
[356637322,1742872244336,-500.0,0.00046849,120]
[356637323,1742872244345,-500.0,0.00046849,120]
[356637324,1742872244355,-2792.72,0.00046849,120]
[356637325,1742872244364,-213.10994336,0.00046849,120]
[356637326,1742872244374,-186.246452,0.00046849,14]
[356637327,1742872244383,-500.0,0.00046849,120]
[356637328,1742872244392,-511.54069547,0.00046849,120]
[356637329,1742872244401,-500.0,0.00046849,120]
[356637330,1742872244411,-516.36,0.00046849,120]
[356637331,1742872244420,-350.0,0.00046849,120]
[356637332,1742872244429,-519.25134432,0.00046849,120]
[356637333,1742872244439,-1597.14,0.00046849,120]
[356637334,1742872244448,-1619.85,0.00046849,2]
[356637335,1742872244458,-203.0,0.000469,15]
[356637336,1742872244467,-853.0,0.00046936,30]
[356637337,1742872244476,-1279.26660535,0.00047,120]
[356637338,1742872244486,-751.21,0.00047085,2]
[356637339,1742872244495,-506.39,0.00047123,120]
[356637340,1742872244504,-500.0,0.00047123,120]
[356637341,1742872244513,-270.6111216,0.00047123,120]
[356637342,1742872244523,-947.8,0.00047123,120]
[356637343,1742872244532,-500.0,0.00047123,120]
[356637344,1742872244542,-500.0,0.00047123,120]
[356637345,1742872244551,-2124.7,0.00047123,120]
[356637346,1742872244560,-500.0,0.00047123,120]
[356637347,1742872244570,-500.0,0.00047123,2]
[356637348,1742872244579,-500.0,0.00047123,120]
[356637349,1742872244587,-500.0,0.00047123,120]
[356637350,1742872244597,-195.23786077,0.00047123,120]
[356637351,1742872244610,-500.0,0.00047123,120]
[356637352,1742872244619,-500.0,0.00047123,120]
[356637353,1742872244628,-500.0,0.00047123,120]
[356637354,1742872244637,-500.0,0.00047123,120]
[356637355,1742872244648,-2792.72,0.00047123,120]
[356637356,1742872244657,-500.0,0.00047123,120]
[356637357,1742872244667,-183.19244083,0.00047123,120]
[356637358,1742872244677,-516.36,0.00047123,120]
[356637359,1742872244687,-350.0,0.00047123,120]
[356637360,1742872244696,-1597.14,0.00047123,120]
[356637361,1742872244707,-1619.85,0.00047123,2]
[356637362,1742872244716,-152.89,0.00047139,2]
[356637363,1742872244726,-506.39,0.00047397,120]
[356637364,1742872244735,-500.0,0.00047397,120]
[356637365,1742872244744,-947.8,0.00047397,120]
[356637366,1742872244753,-500.0,0.00047397,120]
[356637367,1742872244764,-500.0,0.00047397,120]
[356637368,1742872244774,-2124.7,0.00047397,120]
[356637369,1742872244784,-500.0,0.00047397,120]
[356637370,1742872244793,-500.0,0.00047397,2]
[356637371,1742872244803,-500.0,0.00047397,120]
[356637372,1742872244813,-500.0,0.00047397,120]
[356637373,1742872244823,-500.0,0.00047397,120]
[356637374,1742872244832,-500.0,0.00047397,120]
[356637375,1742872244842,-500.0,0.00047397,120]
[356637376,1742872244852,-500.0,0.00047397,120]
[356637377,1742872244862,-2792.72,0.00047397,120]
[356637378,1742872244871,-500.0,0.00047397,120]
[356637379,1742872244880,-516.36,0.00047397,120]
[356637380,1742872244890,-350.0,0.00047397,120]
[356637381,1742872244899,-1597.14,0.00047397,120]
[356637382,1742872244908,-1619.85,0.00047397,2]
[356637383,1742872244918,-853.0,0.0004741,30]
[356637384,1742872244927,-266.25156541,0.0004741,30]
[356637385,1742872244936,-199.03345463,0.00047488,120]
[356637386,1742872244945,-3339.2055685,0.00047514,30]
[356637387,1742872244955,-21723.15990666,0.0004752,10]
[356637388,1742872245017,-415.405,0.0004752,10]
[356637389,1742872245029,-78153.60250442,0.0004752,10]
[356637390,1742872245038,-16046.69137151,0.0004767,29]
[356637391,1742872245048,-506.39,0.00047671,120]
[356637392,1742872245058,-500.0,0.00047671,120]
[356637393,1742872245068,-947.8,0.00047671,120]
[356637394,1742872245078,-500.0,0.00047671,120]
[356637395,1742872245087,-500.0,0.00047671,120]
[356637396,1742872245096,-2124.7,0.00047671,120]
[356637397,1742872245106,-500.0,0.00047671,120]
[356637398,1742872245116,-500.0,0.00047671,2]
[356637399,1742872245126,-464.76138095,0.00047671,120]
[356637400,1742872245136,-500.0,0.00047671,120]
[356637401,1742872245145,-500.0,0.00047671,120]
[356637402,1742872245154,-500.0,0.00047671,120]
[356637403,1742872245164,-500.0,0.00047671,120]
[356637404,1742872245173,-353.68133686,0.00047671,120]
[356637405,1742872245183,-2792.72,0.00047671,120]
[356637406,1742872245192,-576.980694,0.00047671,120]
[356637407,1742872245202,-516.36,0.00047671,120]
[356637408,1742872245211,-462.06965989,0.00047671,120]
[356637409,1742872245221,-1597.14,0.00047671,120]
[356637410,1742872245231,-1619.85,0.00047671,2]
[356637411,1742872245241,-158.12,0.00047671,30]
[356637412,1742872245251,-25057.75961827,0.00047679,29]
[356637413,1742872245261,-24425.8573207,0.00047684,29]
[356637414,1742872245270,-155.55734,0.000477,120]
[356637415,1742872245280,-24425.8573207,0.00047702,29]
[356637416,1742872245289,-25057.75961827,0.00047719,29]
[356637417,1742872245298,-9956.78799716,0.00047734,29]
[356637418,1742872245307,-261.82847932,0.0004776,30]
[356637419,1742872245316,-16046.69137151,0.00047769,29]
[356637420,1742872245326,-9956.78799716,0.00047789,29]
[356637421,1742872245336,-16046.69137151,0.00047792,29]
[356637422,1742872245346,-200.0,0.00047804,29]
[356637423,1742872245355,-922.07810632,0.00047806,29]
[356637424,1742872245365,-13237.93722018,0.00047819,29]
[356637425,1742872245403,-11819.82239809,0.00047819,29]
[356637426,1742872245412,-2855.78791238,0.00047819,29]
[356637427,1742872245424,-2467.30921759,0.00047819,29]
[356637428,1742872245436,-609.5,0.00047819,29]
[356637429,1742872245447,-1083.43086054,0.00047819,29]
[356637430,1742872245459,-17409.82933019,0.00047819,29]
[356637431,1742872245469,-922.07810632,0.0004784,29]
[356637432,1742872245478,-435599.78436056,0.00047853,29]
[356637433,1742872245494,-500.0,0.00046575,120]
[356637434,1742872245503,-18521.71130461,0.00047853,29]
[356637435,1742872245515,-47312.4961956,0.00047853,29]
[356637436,1742872245526,-2593.63830204,0.00047853,29]
[356637437,1742872245538,-1045.20098122,0.00047853,29]
[356637438,1742872245549,-1978.07296787,0.00047853,29]
[356637439,1742872245561,-1369.97507927,0.00047853,29]
[356637440,1742872245582,-500.0,0.00046849,120]
[356637441,1742872245592,-382.36587475,0.00047123,120]
[356637442,1742872245604,-74568.97548005,0.00047853,29]
[356637443,1742872245616,-9311.89994823,0.00047853,29]
[356637444,1742872245627,-686.0995385,0.00047853,29]
[356637445,1742872245638,-4540.0,0.00047853,29]
[356637446,1742872245650,-29826.1888367,0.00047853,29]
[356637447,1742872245662,-433.29969009,0.00047853,29]
[356637448,1742872245674,-1307.54604476,0.00047853,29]
[356637449,1742872245685,-2239.10260521,0.00047853,29]
[356637450,1742872245696,-13096.32458029,0.00047853,29]
[356637452,1742872245705,-13672.75791532,0.00047854,29]
[356637453,1742872245717,-2373.93345619,0.00047854,29]
[356637454,1742872245726,-20.19694848,0.00047873,29]
[356637455,1742872245738,-3899.6,0.00047873,29]
[356637456,1742872245750,-2426.90009,0.00047873,29]
[356637457,1742872245761,-810.44369998,0.00047873,29]
[356637458,1742872245772,-4327.4,0.00047873,29]
[356637459,1742872245783,-301.33474039,0.00047873,29]
[356637460,1742872245795,-6062.06418301,0.00047873,29]
[356637461,1742872245806,-1781.2649874,0.00047873,29]
[356637462,1742872245818,-2155.7435486,0.00047873,29]
[356637463,1742872245830,-838.95,0.00047873,29]
[356637464,1742872245842,-21332.66844539,0.00047873,29]
[356637465,1742872245855,-323347.60008491,0.00047873,29]
[356637466,1742872245867,-20893.71287994,0.00047873,29]
[356637467,1742872245879,-405.12166292,0.00047873,29]
[356637469,1742872247065,-383.30164025,0.00047873,29]
[356637470,1742872247077,-649.83334176,0.00047873,29]
[356637471,1742872247097,-534.55999998,0.00047873,29]
[356637472,1742872247110,-254259.61966199,0.00047873,29]
[356637473,1742872247119,-853.0,0.00047884,30]
[356637474,1742872247129,-644430.315915,0.00047895,29]
[356637475,1742872247138,-922.07810632,0.00047895,29]
[356637476,1742872247148,-251.58661862,0.00047899,120]
[356637477,1742872247157,-184.67777573,0.000479,2]
[356637478,1742872247167,-4522.28622807,0.000479,2]
[356637479,1742872247176,-783.21667932,0.000479,2]
[356637480,1742872247186,-24425.8573207,0.0004793,29]
[356637481,1742872247196,-506.39,0.00047945,120]